fUSD/lending_fUSD_20240117
["ID","MTS","AMOUNT","RATE_DAILY","PERIOD"]
[311975666,1705525847917,-500.0,0.00021917,2]
[311975667,1705525847926,-500.0,0.00021917,2]
[311975668,1705525847935,-500.0,0.00021917,2]
[311975669,1705525847944,-500.0,0.00021917,2]
[311975670,1705525847953,-607.59,0.00021917,2]
[311975671,1705525847962,-500.0,0.00021917,2]
[311975672,1705525847971,-500.0,0.00021917,2]
[311975673,1705525847980,-500.0,0.00021917,2]
[311975674,1705525847989,-274.0681647,0.00021917,2]
[311975675,1705525847998,-1524.8,0.00021917,2]
[311975676,1705525848007,-500.0,0.00021917,2]
[311975677,1705525848016,-500.0,0.00021917,2]
[311975678,1705525848025,-500.0,0.00021917,2]
[311975679,1705525848035,-1519.36,0.00021917,2]
[311975680,1705525848044,-500.0,0.00021917,2]
[311975681,1705525848053,-500.0,0.00021917,2]
[311975682,1705525848063,-500.0,0.00021917,2]
[311975683,1705525848072,-500.0,0.00021917,2]
[311975684,1705525848081,-500.0,0.00021917,2]
[311975685,1705525848090,-500.0,0.00021917,2]
[311975686,1705525848099,-509.66177981,0.00021917,2]
[311975687,1705525848109,-500.0,0.00021917,2]
[311975688,1705525848117,-500.0,0.00021917,2]
[311975689,1705525848128,-825.35,0.00021917,2]
[311975690,1705525848137,-500.0,0.00021917,2]
[311975691,1705525848146,-500.0,0.00021917,2]
[311975692,1705525848155,-500.0,0.00021917,2]
[311975693,1705525848165,-500.0,0.00021917,2]
[311975694,1705525848174,-500.0,0.00021917,2]
[311975695,1705525848183,-500.0,0.00021917,2]
[311975696,1705525848192,-500.0,0.00021917,2]
[311975697,1705525848201,-500.0,0.00021917,2]
[311975698,1705525848211,-500.0,0.00021917,2]
[311975699,1705525848220,-500.0,0.00021917,2]
[311975700,1705525848229,-500.0,0.00021917,2]
[311975701,1705525848238,-500.0,0.00021917,2]
[311975702,1705525848247,-527.73,0.00021917,2]
[311975703,1705525848256,-500.0,0.00021917,2]
[311975704,1705525848266,-1204.34,0.00021917,2]
[311975705,1705525848275,-500.0,0.00021917,2]
[311975706,1705525848284,-500.0,0.00021917,2]
[311975707,1705525848293,-500.0,0.00021917,2]
[311975708,1705525848303,-501.91723454,0.00021917,2]
[311975709,1705525848312,-500.0,0.00021917,2]
[311975710,1705525848323,-500.0,0.00021917,2]
[311975711,1705525848332,-500.0,0.00021917,2]
[311975712,1705525848341,-501.32880581,0.00021917,2]
[311975713,1705525848350,-500.0,0.00021917,2]
[311975714,1705525848359,-500.0,0.00021917,2]
[311975715,1705525848368,-500.0,0.00021917,2]
[311975716,1705525848379,-500.0,0.00021917,2]
[311975717,1705525848388,-500.0,0.00021917,2]
[311975718,1705525848397,-1947.09,0.00021917,5]
[311975719,1705525848406,-500.0,0.00021917,2]
[311975720,1705525848415,-500.0,0.00021917,2]
[311975721,1705525848424,-868.44,0.00021917,2]
[311975722,1705525848434,-500.0,0.00021917,2]
[311975723,1705525848443,-500.0,0.00021917,2]
[311975724,1705525848452,-500.0,0.00021917,2]
[311975725,1705525848461,-500.0,0.00021917,2]
[311975726,1705525848471,-500.0,0.00021917,2]
[311975727,1705525848480,-500.0,0.00021917,2]
[311975728,1705525848489,-500.0,0.00021917,2]
[311975729,1705525848499,-500.0,0.00021917,2]
[311975730,1705525848509,-500.0,0.00021917,2]
[311975731,1705525848518,-500.0,0.00021917,2]
[311975732,1705525848527,-500.0,0.00021917,2]
[311975733,1705525848537,-500.0,0.00021917,2]
[311975734,1705525848546,-500.0,0.00021917,2]
[311975735,1705525848555,-500.0,0.00021917,2]
[311975736,1705525848564,-744.08,0.00021917,2]
[311975737,1705525848574,-500.0,0.00021917,2]
[311975738,1705525848583,-1620.86,0.00021917,2]
[311975739,1705525848592,-500.0,0.00021917,2]
[311975740,1705525848602,-500.0,0.00021917,2]
[311975741,1705525848611,-500.0,0.00021917,2]
[311975742,1705525848620,-500.0,0.00021917,2]
[311975743,1705525848631,-618.15,0.00021917,2]
[311975744,1705525848640,-500.0,0.00021917,2]
[311975745,1705525848650,-500.0,0.00021917,2]
[311975746,1705525848659,-500.0,0.00021917,2]
[311975747,1705525848668,-2763.73,0.00021917,2]
[311975748,1705525848678,-500.0,0.00021917,2]
[311975749,1705525848687,-870.98,0.00021917,2]
[311975750,1705525848697,-500.0,0.00021917,2]
[311975751,1705525848707,-500.0,0.00021917,2]
[311975752,1705525848717,-618.35,0.00021917,2]
[311975753,1705525848726,-500.0,0.00021917,2]
[311975754,1705525848736,-500.0,0.00021917,2]
[311975755,1705525848746,-500.0,0.00021917,2]
[311975756,1705525848759,-500.0,0.00021917,2]
[311975757,1705525848769,-757.36,0.00021917,2]
[311975758,1705525848778,-500.0,0.00021917,2]
[311975759,1705525848788,-500.0,0.00021917,2]
[311975760,1705525848798,-239.43049118,0.00021917,2]
[311975761,1705525848808,-505.83342155,0.00021917,2]
[311975762,1705525848818,-500.0,0.00021917,2]
[311975763,1705525848828,-500.0,0.00021917,2]
[311975764,1705525848838,-500.0,0.00021917,2]
[311975765,1705525848848,-320.41540871,0.00021917,2]
[311975766,1705525848858,-235.57496122,0.00021917,2]
[311975767,1705525848868,-500.0,0.00021917,2]
[311975768,1705525848880,-500.0,0.00021917,2]
[311975769,1705525848889,-500.0,0.00021917,2]
[311975770,1705525848899,-717.46,0.00021917,2]
[311975771,1705525848908,-1178.67,0.00021917,2]
[311975772,1705525848918,-500.0,0.00021917,2]
[311975773,1705525848928,-500.0,0.00021917,2]
[311975774,1705525848938,-500.0,0.00021917,2]
[311975775,1705525848948,-500.0,0.00021917,2]
[311975776,1705525848957,-500.0,0.00021917,2]
[311975777,1705525848967,-500.0,0.00021917,2]
[311975778,1705525848976,-500.0,0.00021917,2]
[311975779,1705525848986,-500.0,0.00021917,2]
[311975780,1705525848996,-500.0,0.00021917,2]
[311975781,1705525849006,-496.18484363,0.00021917,2]
[311975782,1705525849015,-1196.52,0.00021917,2]
[311975783,1705525849025,-621.25,0.00021917,2]
[311975784,1705525849035,-500.0,0.00021917,2]
[311975785,1705525849044,-500.0,0.00021917,2]
[311975786,1705525849053,-561.97591621,0.00021917,2]
[311975787,1705525849063,-500.0,0.00021917,2]
[311975788,1705525849072,-500.0,0.00021917,2]
[311975789,1705525849082,-506.21,0.00021917,2]
[311975790,1705525849091,-1535.1,0.00021917,2]
[311975791,1705525849100,-500.0,0.00021917,2]
[311975792,1705525849109,-500.0,0.00021917,2]
[311975793,1705525849119,-500.0,0.00021917,2]
[311975794,1705525849131,-1746.52,0.00021917,2]
[311975795,1705525849140,-500.0,0.00021917,2]
[311975796,1705525849149,-500.0,0.00021917,2]
[311975797,1705525849158,-500.0,0.00021917,2]
[311975798,1705525849167,-500.0,0.00021917,2]
[311975799,1705525849176,-517.87346342,0.00021917,2]
[311975800,1705525849186,-500.0,0.00021917,2]
[311975801,1705525849196,-500.0,0.00021917,2]
[311975802,1705525849205,-500.0,0.00021917,2]
[311975803,1705525849214,-500.0,0.00021917,2]
[311975804,1705525849223,-500.0,0.00021917,2]
[311975805,1705525849232,-500.0,0.00021917,2]
[311975806,1705525849241,-500.0,0.00021917,2]
[311975807,1705525849251,-500.0,0.00021917,2]
[311975808,1705525849260,-500.0,0.00021917,2]
[311975809,1705525849269,-500.0,0.00021917,2]
[311975810,1705525849278,-500.0,0.00021917,2]
[311975811,1705525849288,-500.0,0.00021917,2]
[311975812,1705525849297,-500.0,0.00021917,5]
[311975813,1705525849306,-500.0,0.00021917,2]
[311975814,1705525849316,-500.0,0.00021917,2]
[311975815,1705525849325,-250.0,0.00021918,2]
[311975816,1705525849335,-2905.96795897,0.0002197,2]
[311975817,1705525849344,-4914.88099414,0.0002197,3]
[311975818,1705525849353,-150.0,0.00022,2]
[311975819,1705525849363,-316.61085504,0.00022,2]
[311975820,1705525849375,-3960.75806329,0.00022,2]
[311975821,1705525849384,-5059.79906107,0.00022014,2]
[311975822,1705525849393,-153.8,0.00022015,2]
[311975823,1705525849402,-150.13,0.00022052,2]
[311975824,1705525849412,-150.25,0.00022081,2]
[311975825,1705525849421,-171.78762555,0.00022089,2]
[311975826,1705525849430,-158.21378668,0.00022091,2]
[311975827,1705525849440,-3473.29686981,0.00022098,2]
[311975828,1705525849450,-386.76750307,0.00022098,2]
[311975829,1705525849459,-475.10229422,0.00022098,2]
[311975830,1705525849468,-8519.24305335,0.00022098,2]
[311975831,1705525849478,-6837.08,0.00022099,2]
[311975832,1705525849487,-159.75745364,0.00022099,2]
[311975833,1705525849497,-3209.77105628,0.00022099,5]
[311975834,1705525849506,-500.0,0.00022099,2]
[311975835,1705525849515,-503628.01728457,0.000221,3]
[311975836,1705525849859,-40788.68465953,0.000221,3]
[311975837,1705525850145,-355.72425126,0.00021917,2]
[311975838,1705525850161,-144.27574874,0.00021917,2]
[311975839,1705525850171,-500.0,0.00021917,2]
[311975840,1705525850180,-308.70896123,0.00022,2]
[311975841,1705525850190,-977.0179755,0.000221,3]
[311975842,1705525850324,-55436.74062461,0.000221,3]
[311975843,1705525850558,-568.37329392,0.000221,3]
[311975844,1705525850569,-393.67099079,0.000221,3]
[311975845,1705525850712,-250.36329529,0.000219,2]
[311975846,1705525850722,-500.0,0.00021917,2]
[311975847,1705525850732,-36.1999653,0.000221,3]
[311975848,1705525850779,-18095.5844675,0.000221,3]
[311975849,1705525850861,-2926.36919963,0.000221,3]
[311975850,1705525850967,-100954.75566633,0.000221,3]
[311975851,1705525851097,-2538.15000001,0.000221,3]
[311975852,1705525851113,-3489.95,0.000221,3]
[311975853,1705525851128,-21329.38378859,0.000221,3]
[311975854,1705525851140,-750.16867202,0.000221,3]
[311975875,1705526317037,300.0,0.0003,120]
[311975879,1705526434413,204.0,0.00018,2]
[311975883,1705526808102,-1045.24138243,0.00018733,2]
[311975884,1705526808122,-2110.89748844,0.00018734,2]
[311975887,1705526932701,1000.0,0.00018172,2]
[311975888,1705526958698,1000.0,0.00018172,2]
[311975890,1705526976707,1000.0,0.0001799,2]
[311975891,1705526994708,1000.0,0.0001799,2]
[311975892,1705527010464,212.0,6.8e-07,5]
[311975893,1705527016701,1000.0,0.0001799,2]
[311975901,1705527031383,-298.38963629,0.00018726,2]
[311975902,1705527031395,-65.62991405,0.00018726,2]
[311975903,1705527031404,-560.56555998,0.00018727,2]
[311975904,1705527031414,-439.35263405,0.00018741,2]
[311975905,1705527031425,-1178.89313008,0.00018741,2]
[311975906,1705527031449,-2147.15410892,0.00018741,2]
[311975907,1705527031460,-387.61028032,0.00018741,2]
[311975908,1705527031471,-1158.03807734,0.00018741,2]
[311975909,1705527031483,-22.09407271,0.00018741,2]
[311975910,1705527031492,-704.65605208,0.00018742,2]
[311975911,1705527031504,-1592.33405386,0.00018742,2]
[311975912,1705527031513,-602.22,0.00018743,2]
[311975913,1705527031523,-204.0,0.00020231,2]
[311975914,1705527031532,-150.0,0.00020253,2]
[311975915,1705527031542,-150.0,0.00020253,2]
[311975916,1705527031551,-1155.9648677,0.00020254,2]
[311975917,1705527031564,-457.0351323,0.00020254,2]
[311975918,1705527031573,-164.96,0.00020254,2]
[311975919,1705527031583,-1000.0,0.00020254,2]
[311975920,1705527031593,-1221.11,0.00020409,2]
[311975921,1705527031603,-404.62,0.00020443,2]
[311975922,1705527031612,-1495.39,0.00020548,2]
[311975923,1705527031622,-151.83,0.00020549,2]
[311975924,1705527031631,-322.05,0.00020549,2]
[311975925,1705527031640,-1451.52810857,0.00020549,2]
[311975926,1705527031652,-395.76320725,0.00020549,2]
[311975927,1705527031668,-1321.21868418,0.00020549,2]
[311975928,1705527031678,-500.0,0.0002057,2]
[311975929,1705527031688,-150.99,0.00020655,2]
[311975930,1705527031698,-153.8,0.00020663,2]
[311975931,1705527031708,-151.03,0.00020726,2]
[311975932,1705527031718,-237.24,0.00020776,2]
[311975933,1705527031727,-499.99,0.00020776,2]
[311975935,1705527031736,-150.99,0.00020927,2]
[311975937,1705527031746,-369.58,0.00020969,2]
[311975940,1705527031756,-2080.3,0.00020969,2]
[311975942,1705527031766,-151.03,0.00020985,2]
[311975944,1705527031775,-602.22,0.00021007,2]
[311975945,1705527031785,-153.8,0.00021095,2]
[311975947,1705527031794,-369.58,0.00021189,2]
[311975950,1705527031804,-412.86866049,0.00021232,2]
[311975952,1705527031816,-1200.13133951,0.00021232,2]
[311975954,1705527031825,-151.03,0.00021244,2]
[311975956,1705527031835,-155.18,0.00021328,2]
[311975958,1705527031844,-369.58,0.0002141,2]
[311975960,1705527031853,-786.07747025,0.000215,3]
[311975962,1705527031862,-137.99119024,0.000215,2]
[311975966,1705527031889,-112.00880976,0.000215,2]
[311975968,1705527031897,-250.0,0.000215,2]
[311975969,1705527031907,-151.03,0.00021504,2]
[311975970,1705527031916,-142.5683143,0.00021527,2]
[311975971,1705527031928,-11.2316857,0.00021527,2]
[311975972,1705527031937,-369.58,0.00021631,2]
[311975973,1705527031946,-80.62248492,0.00021729,2]
[311975974,1705527032211,-354.11977769,0.00021729,2]
[311975975,1705527032225,-619.10457445,0.00021729,2]
[311975976,1705527032237,-1852.16166621,0.00021729,2]
[311975977,1705527032248,-291.09812629,0.00021729,2]
[311975978,1705527032266,-2324.99999602,0.00021729,2]
[311975979,1705527032277,-1341.53946258,0.00021729,2]
[311975980,1705527032288,-566.91591184,0.00021729,2]
[311975981,1705527032297,-151.03,0.00021763,2]
[311975982,1705527032306,-7513.35583929,0.00021807,2]
[311975983,1705527032317,-1003.65893131,0.00021816,2]
[311975984,1705527032326,-250.0,0.00021817,2]
[311975985,1705527032335,-3581.0614,0.00021817,2]
[311975986,1705527032345,-19878.0226,0.00021817,2]
[311975987,1705527032354,-22733.1358,0.00021817,2]
[311975988,1705527032363,-3617.02131781,0.00021817,2]
[311975989,1705527032373,-171.78762555,0.00021817,2]
[311975990,1705527032382,-155.18,0.00021829,2]
[311975991,1705527032392,-369.58,0.00021852,2]
[311975992,1705527032401,-150.0,0.00021855,2]
[311975993,1705527032410,-379.70289,0.00021877,2]
[311975994,1705527032419,-190.0931973,0.00021907,2]
[311975995,1705527032428,-625.89989292,0.00021915,2]
[311975996,1705527032437,-244.64133608,0.00021915,2]
[311975997,1705527032446,-19119.1455636,0.00021915,2]
[311975998,1705527032455,-726.87796621,0.00021915,2]
[311975999,1705527032464,-1177.28037262,0.00021916,2]
[311976000,1705527032474,-229.64,0.00021916,2]
[311976001,1705527032483,-710.34,0.00021917,2]
[311976002,1705527032492,-500.0,0.00021917,2]
[311976003,1705527032501,-427.94873139,0.00021917,2]
[311976004,1705527032510,-500.70931584,0.00021917,2]
[311976005,1705527032518,-308.28644667,0.00021917,2]
[311976006,1705527032527,-500.0,0.00021917,2]
[311976007,1705527032536,-500.0,0.00021917,2]
[311976008,1705527032545,-500.0,0.00021917,2]
[311976009,1705527032555,-500.0,0.00021917,2]
[311976010,1705527032564,-500.0,0.00021917,2]
[311976011,1705527032573,-500.0,0.00021917,2]
[311976012,1705527032582,-552.3,0.00021917,2]
[311976013,1705527032590,-500.0,0.00021917,2]
[311976014,1705527032599,-500.0,0.00021917,2]
[311976015,1705527032609,-500.0,0.00021917,2]
[311976016,1705527032618,-500.0,0.00021917,2]
[311976017,1705527032627,-500.0,0.00021917,2]
[311976018,1705527032636,-500.0,0.00021917,2]
[311976019,1705527032646,-500.0,0.00021917,2]
[311976020,1705527032655,-500.0,0.00021917,2]
[311976021,1705527032664,-500.0,0.00021917,2]
[311976022,1705527032673,-500.0,0.00021917,2]
[311976023,1705527032682,-500.0,0.00021917,2]
[311976024,1705527032692,-500.0,0.00021917,2]
[311976025,1705527032701,-500.0,0.00021917,2]
[311976026,1705527032711,-570.28845142,0.00021917,2]
[311976027,1705527032720,-500.0,0.00021917,2]
[311976028,1705527032729,-500.0,0.00021917,2]
[311976029,1705527032738,-500.0,0.00021917,2]
[311976030,1705527032747,-500.0,0.00021917,2]
[311976031,1705527032756,-348.44521149,0.00021917,2]
[311976032,1705527032939,1000.0,0.0001781,2]
[311976034,1705527038409,-151.55478851,0.00021917,2]
[311976035,1705527038418,-500.0,0.00021917,2]
[311976036,1705527038427,-500.0,0.00021917,2]
[311976037,1705527038437,-500.0,0.00021917,2]
[311976038,1705527038446,-551.69,0.00021917,2]
[311976039,1705527038454,-524.20837714,0.00021917,2]
[311976040,1705527038463,-500.0,0.00021917,2]
[311976041,1705527038473,-500.0,0.00021917,2]
[311976042,1705527038482,-500.0,0.00021917,2]
[311976043,1705527038491,-500.0,0.00021917,2]
[311976044,1705527038500,-501.18943108,0.00021917,2]
[311976045,1705527038509,-500.0,0.00021917,2]
[311976046,1705527038519,-500.0,0.00021917,2]
[311976047,1705527038528,-448.99874728,0.00021917,2]
[311976048,1705527038536,-609.02430672,0.00021917,2]
[311976049,1705527038546,-508.17828854,0.00021917,2]
[311976050,1705527038555,-500.0,0.00021917,2]
[311976051,1705527038564,-500.0,0.00021917,2]
[311976052,1705527038573,-500.0,0.00021917,2]
[311976053,1705527038582,-500.0,0.00021917,2]
[311976054,1705527038591,-500.0,0.00021917,2]
[311976055,1705527038600,-500.0,0.00021917,2]
[311976056,1705527038610,-500.0,0.00021917,2]
[311976057,1705527038618,-500.0,0.00021917,2]
[311976058,1705527038628,-474.99097661,0.00021917,2]
[311976059,1705527038641,-25.00902339,0.00021917,2]
[311976060,1705527038650,-500.0,0.00021917,2]
[311976061,1705527038659,-500.0,0.00021917,2]
[311976062,1705527038668,-500.0,0.00021917,2]
[311976063,1705527038677,-500.0,0.00021917,2]
[311976065,1705527038686,-500.0,0.00021917,2]
[311976067,1705527038695,-500.0,0.00021917,2]
[311976069,1705527038705,-299.97900809,0.00021917,2]
[311976071,1705527038713,-381.19,0.00021917,2]
[311976072,1705527038722,-500.0,0.00021917,2]
[311976074,1705527038732,-500.0,0.00021917,2]
[311976076,1705527038740,-504.51290663,0.00021917,2]
[311976079,1705527038750,-500.0,0.00021917,2]
[311976080,1705527038758,-1191.87,0.00021917,2]
[311976083,1705527038768,-500.0,0.00021917,2]
[311976084,1705527038777,-500.0,0.00021917,2]
[311976086,1705527038786,-500.0,0.00021917,2]
[311976088,1705527038795,-500.0,0.00021917,2]
[311976090,1705527038804,-500.0,0.00021917,2]
[311976092,1705527038813,-500.0,0.00021917,2]
[311976094,1705527038822,-500.0,0.00021917,2]
[311976096,1705527038831,-500.0,0.00021917,2]
[311976098,1705527038840,-500.0,0.00021917,2]
[311976100,1705527038849,-500.0,0.00021917,2]
[311976102,1705527038858,-500.0,0.00021917,2]
[311976104,1705527038867,-500.0,0.00021917,2]
[311976106,1705527038877,-500.0,0.00021917,2]
[311976108,1705527038886,-500.0,0.00021917,2]
[311976110,1705527038895,-500.0,0.00021917,2]
[311976112,1705527038904,-500.0,0.00021917,2]
[311976114,1705527038913,-500.0,0.00021917,2]
[311976116,1705527038922,-500.0,0.00021917,2]
[311976118,1705527038931,-500.0,0.00021917,2]
[311976120,1705527038940,-508.85168021,0.00021917,2]
[311976122,1705527038949,-500.0,0.00021917,2]
[311976124,1705527038958,-500.0,0.00021917,2]
[311976126,1705527038967,-500.0,0.00021917,2]
[311976128,1705527038976,-507.18703347,0.00021917,2]
[311976130,1705527038985,-500.0,0.00021917,2]
[311976132,1705527038994,-500.0,0.00021917,2]
[311976134,1705527039003,-500.0,0.00021917,2]
[311976136,1705527039012,-500.0,0.00021917,2]
[311976138,1705527039022,-500.0,0.00021917,2]
[311976141,1705527039031,-500.0,0.00021917,2]
[311976143,1705527039041,-500.0,0.00021917,2]
[311976144,1705527039050,-500.0,0.00021917,2]
[311976146,1705527039059,-500.0,0.00021917,2]
[311976149,1705527039068,-500.0,0.00021917,2]
[311976151,1705527039077,-261.32334078,0.00021917,2]
[311976153,1705527039087,-500.0,0.00021917,2]
[311976155,1705527039096,-500.0,0.00021917,2]
[311976156,1705527039104,-500.0,0.00021917,2]
[311976158,1705527039113,-500.0,0.00021917,2]
[311976160,1705527039122,-500.0,0.00021917,2]
[311976162,1705527039132,-556.11748999,0.00021917,2]
[311976165,1705527039144,-500.0,0.00021917,2]
[311976167,1705527039153,-500.0,0.00021917,2]
[311976169,1705527039162,-500.0,0.00021917,2]
[311976171,1705527039172,-604.83571791,0.00021917,2]
[311976173,1705527039184,-500.0,0.00021917,2]
[311976175,1705527039193,-500.0,0.00021917,2]
[311976176,1705527039203,-500.0,0.00021917,2]
[311976178,1705527039212,-500.0,0.00021917,2]
[311976180,1705527039222,-500.0,0.00021917,2]
[311976182,1705527039231,-500.0,0.00021917,2]
[311976184,1705527039240,-500.0,0.00021917,2]
[311976186,1705527039249,-500.0,0.00021917,2]
[311976188,1705527039259,-500.0,0.00021917,2]
[311976190,1705527039270,-500.0,0.00021917,2]
[311976192,1705527039279,-500.0,0.00021917,2]
[311976194,1705527039288,-500.0,0.00021917,2]
[311976196,1705527039297,-500.0,0.00021917,2]
[311976198,1705527039306,-500.0,0.00021917,2]
[311976200,1705527039316,-500.0,0.00021917,2]
[311976202,1705527039325,-500.0,0.00021917,2]
[311976203,1705527039335,-500.0,0.00021917,2]
[311976204,1705527039344,-500.0,0.00021917,2]
[311976205,1705527039353,-500.0,0.00021917,2]
[311976206,1705527039362,-500.0,0.00021917,2]
[311976207,1705527039372,-500.0,0.00021917,2]
[311976208,1705527039381,-500.0,0.00021917,2]
[311976209,1705527039390,-500.0,0.00021917,2]
[311976210,1705527039399,-500.0,0.00021917,2]
[311976212,1705527039409,-1000.0,0.00021917,2]
[311976214,1705527039417,-500.0,0.00021917,2]
[311976216,1705527039427,-500.0,0.00021917,2]
[311976218,1705527039436,-500.0,0.00021917,2]
[311976220,1705527039445,-500.0,0.00021917,2]
[311976222,1705527039454,-500.0,0.00021917,2]
[311976224,1705527039463,-500.0,0.00021917,2]
[311976226,1705527039472,-503.62314215,0.00021917,2]
[311976228,1705527039481,-500.0,0.00021917,2]
[311976230,1705527039490,-504.2917127,0.00021917,2]
[311976232,1705527039499,-500.0,0.00021917,2]
[311976234,1705527039508,-500.0,0.00021917,2]
[311976236,1705527039517,-500.0,0.00021917,2]
[311976238,1705527039526,-500.0,0.00021917,2]
[311976241,1705527039535,-500.0,0.00021917,2]
[311976243,1705527039544,-500.0,0.00021917,2]
[311976245,1705527039553,-500.0,0.00021917,2]
[311976246,1705527039562,-500.0,0.00021917,2]
[311976248,1705527039571,-500.0,0.00021917,2]
[311976250,1705527039580,-500.0,0.00021917,2]
[311976253,1705527039589,-500.0,0.00021917,2]
[311976254,1705527039598,-500.0,0.00021917,2]
[311976257,1705527039607,-548.13,0.00021917,2]
[311976259,1705527039616,-500.0,0.00021917,2]
[311976261,1705527039626,-500.0,0.00021917,2]
[311976263,1705527039635,-500.0,0.00021917,2]
[311976265,1705527039644,-500.0,0.00021917,2]
[311976267,1705527039653,-500.0,0.00021917,2]
[311976269,1705527039662,-500.0,0.00021917,2]
[311976271,1705527039671,-440.58947895,0.00021917,2]
[311976315,1705527039759,-59.41052105,0.00021917,2]
[311976317,1705527039975,-500.0,0.00021917,2]
[311976319,1705527039984,-500.0,0.00021917,2]
[311976321,1705527039994,-500.0,0.00021917,2]
[311976323,1705527040003,-500.0,0.00021917,2]
[311976325,1705527040012,-500.0,0.00021917,2]
[311976327,1705527040022,-500.0,0.00021917,2]
[311976329,1705527040031,-500.0,0.00021917,2]
[311976332,1705527040040,-500.0,0.00021917,2]
[311976333,1705527040050,-500.0,0.00021917,2]
[311976336,1705527040059,-343.13119674,0.00021917,2]
[311976409,1705527040735,-200.0,0.00021138,2]
[311976411,1705527040744,-156.86880326,0.00021917,2]
[311976413,1705527040753,-401.04641328,0.00021917,2]
[311976618,1705527042699,-5680.1075,0.00021817,2]
[311976620,1705527042709,-98.95358672,0.00021917,2]
[311976622,1705527042718,-500.0,0.00021917,2]
[311976624,1705527042727,-500.0,0.00021917,2]
[311976626,1705527042736,-500.0,0.00021917,2]
[311976628,1705527042746,-500.0,0.00021917,2]
[311976630,1705527042755,-500.0,0.00021917,2]
[311976632,1705527042764,-607.41,0.00021917,2]
[311976634,1705527042774,-332.54710726,0.00021917,2]
[311976891,1705527045421,-1219.9999296,0.00021916,2]
[311976906,1705527045555,-1052.68331414,0.00021916,2]
[311976908,1705527045565,-362.02964811,0.00021916,2]
[311976910,1705527045574,-181.7313702,0.00021916,2]
[311976912,1705527045585,-167.45289274,0.00021917,2]
[311976914,1705527045594,-500.0,0.00021917,2]
[311976916,1705527045603,-225.84905453,0.00021917,2]
[311976919,1705527045615,-274.15094547,0.00021917,2]
[311976921,1705527045624,-162.19758408,0.00021917,2]
[311976923,1705527045638,-337.80241592,0.00021917,2]
[311976925,1705527045647,-506.55185285,0.00021917,2]
[311976927,1705527045656,-500.0,0.00021917,2]
[311976929,1705527045665,-522.0514768,0.00021917,2]
[311976931,1705527045674,-500.0,0.00021917,2]
[311976933,1705527045683,-171.63857317,0.00021917,2]
[311976939,1705527045727,-243.35310496,0.00021917,2]
[311976940,1705527045737,-212.64889504,0.00021917,2]
[311977241,1705527048702,1000.0,0.0001781,2]
[311977970,1705527064711,1000.0,0.0001781,2]
[311977973,1705527084710,1000.0,0.00017632,2]
[311977976,1705527104706,1000.0,0.00017632,2]
[311977978,1705527126744,1000.0,0.00017632,2]
[311977980,1705527142715,1000.0,0.00017456,2]
[311977982,1705527160718,1000.0,0.00017456,2]
[311977983,1705527178916,1000.0,0.00017456,2]
[311977986,1705527204719,1000.0,0.00017281,2]
[311977990,1705527222718,1000.0,0.00017281,2]